fUST/lending_fUST_20240904
["ID","MTS","AMOUNT","RATE_DAILY","PERIOD"]
[337155856,1725456769933,-588.3,0.00031232,2]
[337155857,1725456769943,-600.56,0.00031232,2]
[337155858,1725456769953,-991.44,0.00031232,2]
[337155859,1725456769963,-500.0,0.00031232,2]
[337155860,1725456769973,-500.0,0.00031232,2]
[337155861,1725456769983,-500.0,0.00031232,2]
[337155862,1725456769994,-541.5,0.00031232,2]
[337155863,1725456770004,-203.79,0.00031232,2]
[337155864,1725456770014,-500.0,0.00031232,2]
[337155865,1725456770024,-500.0,0.00031232,2]
[337155866,1725456770034,-500.0,0.00031232,2]
[337155867,1725456770043,-500.0,0.00031232,2]
[337155868,1725456770053,-500.0,0.00031232,2]
[337155869,1725456770063,-500.0,0.00031232,2]
[337155870,1725456770073,-198.86110043,0.00031232,2]
[337155871,1725456770082,-500.0,0.00031232,2]
[337155872,1725456770093,-525.77,0.00031232,2]
[337155873,1725456770102,-500.0,0.00031232,2]
[337155874,1725456770111,-500.0,0.00031232,2]
[337155875,1725456770121,-500.0,0.00031232,2]
[337155876,1725456770130,-676.43,0.00031232,2]
[337155877,1725456770153,-632.09,0.00031232,2]
[337155878,1725456770169,-500.0,0.00031232,2]
[337155879,1725456770190,-500.0,0.00031232,2]
[337155880,1725456770210,-500.0,0.00031232,2]
[337155881,1725456770228,-500.0,0.00031232,2]
[337155882,1725456770249,-500.0,0.00031232,2]
[337155883,1725456770265,-500.0,0.00031232,2]
[337155884,1725456770282,-616.0,0.00031232,2]
[337155885,1725456770300,-504.86,0.00031232,2]
[337155886,1725456770320,-604.04,0.00031232,2]
[337155887,1725456770334,-500.0,0.00031232,2]
[337155888,1725456770348,-500.0,0.00031232,2]
[337155889,1725456770365,-500.0,0.00031232,2]
[337155890,1725456770383,-500.0,0.00031232,2]
[337155891,1725456770399,-1246.01,0.00031232,2]
[337155892,1725456770417,-697.13,0.00031232,2]
[337155893,1725456770434,-854.77,0.00031232,2]
[337155894,1725456770450,-600.81,0.00031232,2]
[337155895,1725456770464,-500.0,0.00031232,2]
[337155896,1725456770479,-749.45,0.00031232,2]
[337155897,1725456770504,-500.0,0.00031232,2]
[337155898,1725456770519,-500.0,0.00031232,2]
[337155899,1725456770534,-590.0,0.00031232,2]
[337155900,1725456770549,-500.0,0.00031232,2]
[337155901,1725456770563,-500.0,0.00031232,2]
[337155902,1725456770579,-500.0,0.00031232,2]
[337155903,1725456770594,-500.0,0.00031232,2]
[337155904,1725456770609,-500.0,0.00031232,2]
[337155905,1725456770626,-500.0,0.00031232,2]
[337155906,1725456770641,-510.61,0.00031232,2]
[337155907,1725456770656,-500.0,0.00031232,2]
[337155908,1725456770672,-500.0,0.00031232,2]
[337155909,1725456770687,-500.0,0.00031232,2]
[337155910,1725456770702,-500.0,0.00031232,2]
[337155911,1725456770718,-361.693139,0.00031232,2]
[337155912,1725456770736,-575.59975128,0.00031232,2]
[337155913,1725456770751,-500.0,0.00031232,2]
[337155914,1725456770766,-500.0,0.00031232,2]
[337155915,1725456770779,-556.56717863,0.00031232,2]
[337155916,1725456770793,-482.89578546,0.00031232,2]
[337155917,1725456770808,-887.25,0.00031232,2]
[337155918,1725456770822,-500.0,0.00031232,2]
[337155919,1725456770837,-500.0,0.00031232,2]
[337155920,1725456770853,-758.9,0.00031232,2]
[337155921,1725456770868,-500.0,0.00031232,2]
[337155922,1725456770882,-500.0,0.00031232,2]
[337155923,1725456770896,-518.33785842,0.00031232,2]
[337155924,1725456770910,-500.0,0.00031232,2]
[337155925,1725456770924,-500.0,0.00031232,2]
[337155926,1725456770940,-500.0,0.00031232,2]
[337155927,1725456770955,-500.0,0.00031232,2]
[337155928,1725456770971,-500.0,0.00031232,2]
[337155929,1725456770988,-945.1,0.00031232,2]
[337155930,1725456771003,-500.0,0.00031232,2]
[337155931,1725456771016,-1029.49,0.00031232,2]
[337155932,1725456771030,-770.95,0.00031232,2]
[337155933,1725456771045,-500.0,0.00031232,2]
[337155934,1725456771059,-400.47758312,0.00031232,2]
[337155935,1725456771073,-566.62,0.00031232,2]
[337155936,1725456771087,-657.65,0.00031232,2]
[337155937,1725456771102,-500.0,0.00031232,2]
[337155938,1725456771116,-500.0,0.00031232,2]
[337155939,1725456771130,-500.0,0.00031232,2]
[337155940,1725456771145,-491.8352815,0.00031232,2]
[337155941,1725456771159,-863.47,0.00031232,2]
[337155942,1725456771173,-614.65,0.00031232,2]
[337155943,1725456771186,-500.0,0.00031232,2]
[337155944,1725456771200,-500.0,0.00031232,2]
[337155945,1725456771214,-500.0,0.00031232,2]
[337155946,1725456771228,-500.0,0.00031232,2]
[337155947,1725456771241,-500.0,0.00031232,2]
[337155948,1725456771255,-648.68,0.00031232,2]
[337155949,1725456771269,-500.0,0.00031232,2]
[337155950,1725456771285,-532.88,0.00031232,2]
[337155951,1725456771298,-500.0,0.00031232,2]
[337155952,1725456771312,-701.69,0.00031232,2]
[337155953,1725456771325,-500.0,0.00031232,2]
[337155954,1725456771339,-500.0,0.00031232,2]
[337155955,1725456771353,-507.94763485,0.00031232,2]
[337155956,1725456771368,-578.02,0.00031232,2]
[337155957,1725456771382,-500.0,0.00031232,2]
[337155958,1725456771395,-666.45,0.00031232,2]
[337155959,1725456771409,-500.0,0.00031232,2]
[337155960,1725456771424,-500.0,0.00031232,2]
[337155961,1725456771438,-674.09,0.00031232,2]
[337155962,1725456771452,-623.51,0.00031232,2]
[337155963,1725456771467,-574.79,0.00031232,2]
[337155964,1725456771481,-500.0,0.00031232,2]
[337155965,1725456771500,-500.0,0.00031232,2]
[337155966,1725456771514,-604.6,0.00031232,2]
[337155967,1725456771531,-500.0,0.00031232,2]
[337155968,1725456771544,-500.0,0.00031232,2]
[337155969,1725456771560,-500.0,0.00031232,2]
[337155970,1725456771573,-500.0,0.00031232,2]
[337155971,1725456771588,-500.0,0.00031232,2]
[337155972,1725456771604,-500.0,0.00031232,2]
[337155973,1725456771618,-500.0,0.00031232,2]
[337155974,1725456771636,-500.0,0.00031232,2]
[337155975,1725456771648,-500.0,0.00031232,2]
[337155976,1725456771661,-500.0,0.00031232,2]
[337155977,1725456771676,-500.0,0.00031232,2]
[337155978,1725456771689,-847.93,0.00031232,2]
[337155979,1725456771703,-870.2,0.00031232,2]
[337155980,1725456771718,-500.0,0.00031232,2]
[337155981,1725456771731,-1991.87,0.00031232,2]
[337155982,1725456771752,-500.0,0.00031232,2]
[337155983,1725456771765,-899.14,0.00031232,2]
[337155984,1725456771778,-613.99,0.00031232,2]
[337155985,1725456771793,-762.62,0.00031232,2]
[337155986,1725456771806,-500.0,0.00031232,2]
[337155987,1725456771821,-732.83,0.00031232,2]
[337155988,1725456771834,-500.0,0.00031232,2]
[337155989,1725456771848,-500.0,0.00031232,2]
[337155990,1725456771861,-194.5,0.00031232,2]
[337155991,1725456771876,-227.82,0.00031232,2]
[337155992,1725456771893,-306.64925732,0.00031232,2]
[337155993,1725456771906,-2003.71,0.00031232,2]
[337155994,1725456771920,-1205.94,0.00031232,2]
[337155995,1725456771934,-526.12,0.00031232,2]
[337155996,1725456771949,-500.0,0.00031232,2]
[337155997,1725456771963,-500.0,0.00031232,2]
[337155998,1725456771978,-912.72,0.00031232,2]
[337155999,1725456771994,-2500.0,0.00031232,3]
[337156000,1725456772008,-500.0,0.00031232,2]
[337156001,1725456772024,-1228.0,0.00031232,2]
[337156002,1725456772036,-500.0,0.00031232,2]
[337156003,1725456772051,-500.0,0.00031232,2]
[337156004,1725456772064,-954.3,0.00031232,2]
[337156005,1725456772078,-1417.83,0.00031232,2]
[337156006,1725456772091,-1493.78,0.00031232,2]
[337156007,1725456772105,-591.49,0.00031232,2]
[337156008,1725456772118,-711.92,0.00031232,2]
[337156009,1725456772131,-1275.87,0.00031232,2]
[337156010,1725456772145,-2668.56,0.00031232,2]
[337156011,1725456772159,-1035.91,0.00031232,2]
[337156012,1725456772173,-1248.71,0.00031232,2]
[337156013,1725456772187,-967.05,0.00031232,2]
[337156014,1725456772201,-2693.21,0.00031232,2]
[337156015,1725456772215,-1338.09,0.00031232,2]
[337156016,1725456772229,-1107.58,0.00031232,2]
[337156017,1725456772244,-4246.41,0.00031232,2]
[337156018,1725456772257,-1107.23,0.00031232,2]
[337156019,1725456772270,-1365.5,0.00031232,2]
[337156020,1725456772284,-1532.75,0.00031232,2]
[337156021,1725456772299,-1527.6,0.00031232,2]
[337156022,1725456772313,-1066.88,0.00031232,2]
[337156023,1725456772597,-1660.38,0.00031232,2]
[337156024,1725456772616,-754.88,0.00031232,2]
[337156025,1725456772627,-1670.02,0.00031232,2]
[337156026,1725456772638,-770.2,0.00031232,2]
[337156027,1725456772647,-1102.43,0.00031232,2]
[337156028,1725456772657,-1127.67,0.00031232,2]
[337156029,1725456772666,-1244.81,0.00031232,2]
[337156030,1725456772677,-1739.84,0.00031232,2]
[337156031,1725456772687,-500.0,0.00031232,2]
[337156032,1725456772696,-2500.0,0.00031232,3]
[337156033,1725456772706,-1099.51,0.00031232,2]
[337156034,1725456772715,-1841.76,0.00031232,2]
[337156035,1725456772725,-1011.14,0.00031232,2]
[337156036,1725456772734,-1093.15,0.00031232,2]
[337156037,1725456772748,-1756.8,0.00031232,2]
[337156038,1725456772757,-1799.48,0.00031232,2]
[337156039,1725456772767,-734.49,0.00031232,2]
[337156040,1725456772776,-1726.91865642,0.00031232,3]
[337156041,1725456772785,-306.0,0.00031281,2]
[337156042,1725456772795,-192.145128,0.0003129,2]
[337156043,1725456772807,-279.800464,0.0003129,2]
[337156044,1725456772817,-336.491161,0.0003129,2]
[337156045,1725456772826,-198.197436,0.0003129,2]
[337156046,1725456772835,-314.936021,0.0003129,2]
[337156047,1725456772844,-475.673845,0.0003129,2]
[337156048,1725456772853,-792.789742,0.0003129,2]
[337156049,1725456772862,-385.464683,0.0003129,2]
[337156050,1725456772871,-469.959228,0.0003129,2]
[337156051,1725456772880,-292.252881,0.0003129,2]
[337156052,1725456772889,-466.059004,0.0003129,2]
[337156053,1725456772899,-383.358184,0.0003129,2]
[337156054,1725456772910,-160.0,0.00031386,4]
[337156055,1725456772920,-2500.0,0.00031489,5]
[337156056,1725456772929,-338.56,0.00031496,2]
[337156057,1725456772939,-749.82,0.00031496,2]
[337156058,1725456772949,-500.0,0.00031496,2]
[337156059,1725456772959,-500.0,0.00031496,2]
[337156060,1725456772968,-201.9264175,0.00031506,2]
[337156061,1725456772978,-174.86,0.00031506,2]
[337156062,1725456772989,-500.0,0.00031506,2]
[337156063,1725456772998,-1474.74,0.00031506,2]
[337156064,1725456773008,-617.89,0.00031506,2]
[337156065,1725456773018,-540.48,0.00031506,2]
[337156066,1725456773027,-500.0,0.00031506,2]
[337156067,1725456773037,-403.54,0.00031506,2]
[337156068,1725456773047,-538.02,0.00031506,2]
[337156069,1725456773056,-1937.6,0.00031506,2]
[337156070,1725456773066,-588.58,0.00031506,2]
[337156071,1725456773074,-854.16,0.00031506,2]
[337156072,1725456773083,-500.0,0.00031506,2]
[337156073,1725456773092,-912.4,0.00031506,2]
[337156074,1725456773102,-500.0,0.00031506,2]
[337156075,1725456773111,-1760.41,0.00031506,2]
[337156076,1725456773120,-500.0,0.00031506,2]
[337156077,1725456773130,-500.0,0.00031506,2]
[337156078,1725456773139,-500.0,0.00031506,2]
[337156079,1725456773149,-500.0,0.00031506,2]
[337156080,1725456773158,-529.57,0.00031506,2]
[337156081,1725456773167,-2076.7,0.00031506,2]
[337156082,1725456773176,-193.42,0.00031506,2]
[337156083,1725456773186,-521.85,0.00031506,2]
[337156084,1725456773195,-1394.78,0.00031506,2]
[337156085,1725456773204,-1309.04,0.00031506,2]
[337156086,1725456773214,-536.15425374,0.00031506,2]
[337156087,1725456773223,-1026.02,0.00031506,2]
[337156088,1725456773233,-1208.37,0.00031506,2]
[337156089,1725456773245,-500.0,0.00031506,2]
[337156090,1725456773255,-1338.25,0.00031506,2]
[337156091,1725456773265,-500.0,0.00031506,2]
[337156092,1725456773274,-1167.36,0.00031506,2]
[337156093,1725456773285,-1426.7,0.00031506,2]
[337156094,1725456773295,-1038.97,0.00031506,2]
[337156095,1725456773304,-2750.23,0.00031506,2]
[337156096,1725456773314,-2710.57,0.00031506,2]
[337156097,1725456773324,-1541.42,0.00031506,2]
[337156098,1725456773333,-3258.81,0.00031506,2]
[337156099,1725456773343,-1264.51,0.00031506,2]
[337156100,1725456773353,-9158.35,0.00031506,2]
[337156101,1725456773363,-500.0,0.00031506,2]
[337156102,1725456773372,-584.36,0.00031506,2]
[337156103,1725456773381,-542.73,0.00031506,2]
[337156104,1725456773391,-500.0,0.00031506,2]
[337156105,1725456773400,-1675.33,0.00031506,2]
[337156106,1725456773410,-1458.75,0.00031506,2]
[337156107,1725456773419,-552.11,0.00031506,2]
[337156108,1725456773429,-500.0,0.00031506,2]
[337156109,1725456773438,-500.0,0.00031506,2]
[337156110,1725456773447,-500.0,0.00031506,2]
[337156111,1725456773457,-500.0,0.00031506,2]
[337156112,1725456773466,-500.0,0.00031506,2]
[337156113,1725456773476,-1197.66,0.00031506,2]
[337156114,1725456773486,-588.3,0.00031506,2]
[337156115,1725456773496,-600.56,0.00031506,2]
[337156116,1725456773506,-500.0,0.00031506,2]
[337156117,1725456773516,-205.76,0.00031506,2]
[337156118,1725456773525,-500.0,0.00031506,2]
[337156119,1725456773534,-209.04,0.00031506,2]
[337156120,1725456773544,-500.0,0.00031506,2]
[337156121,1725456773554,-332.52,0.00031506,2]
[337156122,1725456773562,-500.0,0.00031506,2]
[337156123,1725456773572,-500.0,0.00031506,2]
[337156124,1725456773581,-500.0,0.00031506,2]
[337156125,1725456773590,-525.77,0.00031506,2]
[337156126,1725456773599,-500.0,0.00031506,2]
[337156127,1725456773609,-500.0,0.00031506,2]
[337156128,1725456773618,-458.86,0.00031506,2]
[337156129,1725456773629,-676.43,0.00031506,2]
[337156130,1725456773639,-632.09,0.00031506,2]
[337156131,1725456773650,-500.0,0.00031506,2]
[337156132,1725456773660,-478.8,0.00031506,2]
[337156133,1725456773671,-500.0,0.00031506,2]
[337156134,1725456773680,-500.0,0.00031506,2]
[337156135,1725456773689,-500.0,0.00031506,2]
[337156136,1725456773698,-500.0,0.00031506,2]
[337156137,1725456773710,-616.0,0.00031506,2]
[337156138,1725456773719,-504.86,0.00031506,2]
[337156139,1725456773729,-604.04,0.00031506,2]
[337156140,1725456773740,-500.0,0.00031506,2]
[337156141,1725456773750,-213.6,0.00031506,2]
[337156142,1725456773760,-500.0,0.00031506,2]
[337156143,1725456773769,-500.0,0.00031506,2]
[337156144,1725456773779,-1246.01,0.00031506,2]
[337156145,1725456773788,-697.13,0.00031506,2]
[337156146,1725456773798,-854.77,0.00031506,2]
[337156147,1725456773808,-600.81,0.00031506,2]
[337156148,1725456773817,-500.0,0.00031506,2]
[337156149,1725456773827,-749.45,0.00031506,2]
[337156150,1725456773836,-500.0,0.00031506,2]
[337156151,1725456773845,-500.0,0.00031506,2]
[337156152,1725456773855,-590.0,0.00031506,2]
[337156153,1725456773864,-222.31058664,0.00031506,2]
[337156154,1725456773873,-425.68213198,0.00031506,2]
[337156155,1725456773884,-500.0,0.00031506,2]
[337156156,1725456773894,-500.0,0.00031506,2]
[337156157,1725456773904,-500.0,0.00031506,2]
[337156158,1725456773914,-500.0,0.00031506,2]
[337156159,1725456773923,-510.61,0.00031506,2]
[337156160,1725456773933,-518.24386028,0.00031506,2]
[337156161,1725456773943,-500.0,0.00031506,2]
[337156162,1725456773952,-215.9718323,0.00031506,2]
[337156163,1725456773965,-520.3282539,0.00031506,2]
[337156164,1725456773974,-500.0,0.00031506,2]
[337156165,1725456773983,-500.0,0.00031506,2]
[337156166,1725456773998,-887.25,0.00031506,2]
[337156167,1725456774010,-500.0,0.00031506,2]
[337156168,1725456774020,-500.0,0.00031506,2]
[337156169,1725456774029,-758.9,0.00031506,2]
[337156170,1725456774038,-500.0,0.00031506,2]
[337156171,1725456774047,-500.0,0.00031506,2]
[337156172,1725456774057,-500.0,0.00031506,2]
[337156173,1725456774067,-500.0,0.00031506,2]
[337156174,1725456774077,-500.0,0.00031506,2]
[337156175,1725456774086,-500.0,0.00031506,2]
[337156176,1725456774096,-500.0,0.00031506,2]
[337156177,1725456774105,-945.1,0.00031506,2]
[337156178,1725456774114,-500.0,0.00031506,2]
[337156179,1725456774123,-1029.49,0.00031506,2]
[337156180,1725456774132,-770.95,0.00031506,2]
[337156181,1725456774143,-500.0,0.00031506,2]
[337156182,1725456774152,-566.62,0.00031506,2]
[337156183,1725456774161,-657.65,0.00031506,2]
[337156184,1725456774171,-500.0,0.00031506,2]
[337156185,1725456774181,-285.81,0.00031506,2]
[337156186,1725456774190,-500.0,0.00031506,2]
[337156187,1725456774199,-863.47,0.00031506,2]
[337156188,1725456774209,-614.65,0.00031506,2]
[337156189,1725456774218,-485.77340199,0.00031506,2]
[337156190,1725456774227,-318.82,0.00031506,2]
[337156191,1725456774236,-395.88,0.00031506,2]
[337156192,1725456774252,-500.0,0.00031506,2]
[337156193,1725456774261,-500.0,0.00031506,2]
[337156194,1725456774270,-648.68,0.00031506,2]
[337156195,1725456774280,-500.0,0.00031506,2]
[337156196,1725456774289,-500.0,0.00031506,2]
[337156197,1725456774298,-701.69,0.00031506,2]
[337156198,1725456774308,-462.58483086,0.00031506,2]
[337156199,1725456774317,-500.0,0.00031506,2]
[337156200,1725456774326,-578.02,0.00031506,2]
[337156201,1725456774335,-187.68,0.00031506,2]
[337156202,1725456774345,-666.45,0.00031506,2]
[337156203,1725456774354,-500.0,0.00031506,2]
[337156204,1725456774364,-674.09,0.00031506,2]
[337156205,1725456774373,-623.51,0.00031506,2]
[337156206,1725456774383,-574.79,0.00031506,2]
[337156207,1725456774392,-500.0,0.00031506,2]
[337156208,1725456774401,-500.0,0.00031506,2]
[337156209,1725456774410,-604.6,0.00031506,2]
[337156210,1725456774419,-500.0,0.00031506,2]
[337156211,1725456774429,-500.0,0.00031506,2]
[337156212,1725456774439,-500.0,0.00031506,2]
[337156213,1725456774448,-543.109417,0.00031506,2]
[337156214,1725456774458,-500.0,0.00031506,2]
[337156215,1725456774467,-378.38439036,0.00031506,2]
[337156216,1725456774476,-234.73,0.00031506,2]
[337156217,1725456774485,-500.0,0.00031506,2]
[337156218,1725456774497,-500.0,0.00031506,2]
[337156219,1725456774506,-847.93,0.00031506,2]
[337156220,1725456774515,-870.2,0.00031506,2]
[337156221,1725456774524,-500.0,0.00031506,2]
[337156222,1725456774534,-1991.87,0.00031506,2]
[337156223,1725456774543,-500.0,0.00031506,2]
[337156224,1725456774552,-899.14,0.00031506,2]
[337156225,1725456774562,-613.99,0.00031506,2]
[337156226,1725456774572,-762.62,0.00031506,2]
[337156227,1725456774581,-500.0,0.00031506,2]
[337156228,1725456774590,-732.83,0.00031506,2]
[337156229,1725456774600,-500.0,0.00031506,2]
[337156230,1725456774609,-179.23251744,0.00031506,2]
[337156231,1725456774619,-2003.71,0.00031506,2]
[337156232,1725456774632,-1205.94,0.00031506,2]
[337156233,1725456774642,-526.12,0.00031506,2]
[337156234,1725456774651,-500.0,0.00031506,2]
[337156235,1725456774661,-500.0,0.00031506,2]
[337156236,1725456774670,-912.72,0.00031506,2]
[337156237,1725456774679,-460.05,0.00031506,2]
[337156238,1725456774688,-500.0,0.00031506,2]
[337156239,1725456774697,-500.0,0.00031506,2]
[337156240,1725456774709,-954.3,0.00031506,2]
[337156241,1725456774719,-1417.83,0.00031506,2]
[337156242,1725456774728,-1493.78,0.00031506,2]
[337156243,1725456774737,-591.49,0.00031506,2]
[337156244,1725456774747,-711.92,0.00031506,2]
[337156245,1725456774755,-1275.87,0.00031506,2]
[337156246,1725456774765,-2668.56,0.00031506,2]
[337156247,1725456774774,-1035.91,0.00031506,2]
[337156248,1725456774782,-1248.71,0.00031506,2]
[337156249,1725456774792,-967.05,0.00031506,2]
[337156250,1725456774801,-2693.21,0.00031506,2]
[337156251,1725456774810,-1338.09,0.00031506,2]
[337156252,1725456774819,-1107.58,0.00031506,2]
[337156253,1725456774828,-4246.41,0.00031506,2]
[337156254,1725456774837,-1107.23,0.00031506,2]
[337156255,1725456774846,-1365.5,0.00031506,2]
[337156256,1725456774856,-1532.75,0.00031506,2]
[337156257,1725456774865,-1527.6,0.00031506,2]
[337156258,1725456774874,-1066.88,0.00031506,2]
[337156259,1725456774883,-1660.38,0.00031506,2]
[337156260,1725456774893,-754.88,0.00031506,2]
[337156261,1725456774902,-1670.02,0.00031506,2]
[337156262,1725456774912,-770.2,0.00031506,2]
[337156263,1725456774921,-1102.43,0.00031506,2]
[337156264,1725456774930,-1127.67,0.00031506,2]
[337156265,1725456774940,-1244.81,0.00031506,2]
[337156266,1725456774949,-1739.84,0.00031506,2]
[337156267,1725456774958,-500.0,0.00031506,2]
[337156268,1725456774967,-1099.51,0.00031506,2]
[337156269,1725456774977,-1841.76,0.00031506,2]
[337156270,1725456774986,-1011.14,0.00031506,2]
[337156271,1725456775000,-1093.15,0.00031506,2]
[337156272,1725456775009,-1756.8,0.00031506,2]
[337156273,1725456775018,-1799.48,0.00031506,2]
[337156274,1725456775027,-734.49,0.00031506,2]
[337156275,1725456775037,-437.1718726,0.00031534,2]
[337156276,1725456775046,-162.947401,0.00031544,2]
[337156277,1725456775056,-182.658051,0.00031544,2]
[337156278,1725456775065,-153.584468,0.00031544,2]
[337156279,1725456775075,-800.0,0.00031577,7]
[337156280,1725456775084,-6849.4161113,0.00031586,2]
[337156281,1725456775094,-151.0,0.00031589,120]
[337156282,1725456775104,-437.1718726,0.00031671,2]
[337156283,1725456775114,-192.145128,0.00031672,2]
[337156284,1725456775124,-279.800464,0.00031672,2]
[337156285,1725456775133,-336.491161,0.00031672,2]
[337156286,1725456775143,-198.197436,0.00031672,2]
[337156287,1725456775152,-314.936021,0.00031672,2]
[337156288,1725456775162,-385.464683,0.00031672,2]
[337156289,1725456775172,-469.959228,0.00031672,2]
[337156290,1725456775182,-292.252881,0.00031672,2]
[337156291,1725456775191,-466.059004,0.00031672,2]
[337156292,1725456775201,-383.358184,0.00031672,2]
[337156293,1725456775211,-500.0,0.00031707,7]
[337156294,1725456775220,-1200.0,0.00031743,7]
[337156295,1725456775231,-749.82,0.0003177,2]
[337156296,1725456775242,-500.0,0.0003177,2]
[337156297,1725456775252,-500.0,0.0003177,2]
[337156298,1725456775262,-500.0,0.0003178,2]
[337156299,1725456775271,-500.0,0.0003178,2]
[337156300,1725456775281,-1302.87,0.0003178,2]
[337156301,1725456775290,-1156.02,0.0003178,2]
[337156302,1725456775300,-760.8,0.0003178,2]
[337156303,1725456775310,-2082.53,0.0003178,2]
[337156304,1725456775319,-200.9243874,0.0003178,2]
[337156305,1725456775329,-10473.4,0.0003178,2]
[337156306,1725456775338,-885.72,0.0003178,2]
[337156307,1725456775349,-871.3,0.0003178,2]
[337156308,1725456775359,-2887.27,0.0003178,2]
[337156309,1725456775369,-1285.92,0.0003178,2]
[337156310,1725456775379,-985.59,0.0003178,2]
[337156311,1725456775389,-4135.59,0.0003178,2]
[337156312,1725456775400,-500.0,0.0003178,2]
[337156313,1725456775410,-500.0,0.0003178,2]
[337156314,1725456775420,-500.0,0.0003178,2]
[337156315,1725456775430,-543.17,0.0003178,2]
[337156316,1725456775440,-6518.68,0.0003178,2]
[337156317,1725456775450,-1587.43,0.0003178,2]
[337156318,1725456775459,-881.43,0.0003178,2]
[337156319,1725456775469,-5985.78,0.0003178,2]
[337156320,1725456775479,-506.34,0.0003178,2]
[337156321,1725456775491,-329.90382685,0.0003178,2]
[337156322,1725456775501,-1326.71,0.0003178,2]
[337156323,1725456775510,-760.48,0.0003178,2]
[337156324,1725456775521,-500.0,0.0003178,2]
[337156325,1725456775531,-1143.83,0.0003178,2]
[337156326,1725456775727,-2460.73,0.0003178,2]
[337156327,1725456775737,-276.23645631,0.0003178,2]
[337156328,1725456775747,-584.31,0.0003178,2]
[337156329,1725456775757,-807.59,0.0003178,2]
[337156330,1725456775766,-1986.82,0.0003178,2]
[337156331,1725456775776,-1131.76,0.0003178,2]
[337156332,1725456775785,-500.0,0.0003178,2]
[337156333,1725456775795,-919.57,0.0003178,2]
[337156334,1725456775804,-500.0,0.0003178,2]
[337156335,1725456775814,-500.0,0.0003178,2]
[337156336,1725456775823,-519.17,0.0003178,2]
[337156337,1725456775833,-500.0,0.0003178,2]
[337156338,1725456775843,-1474.74,0.0003178,2]
[337156339,1725456775852,-617.89,0.0003178,2]
[337156340,1725456775862,-540.48,0.0003178,2]
[337156341,1725456775872,-280.1,0.0003178,2]
[337156342,1725456775882,-538.02,0.0003178,2]
[337156343,1725456775892,-1937.6,0.0003178,2]
[337156344,1725456775902,-588.58,0.0003178,2]
[337156345,1725456775911,-854.16,0.0003178,2]
[337156346,1725456775921,-500.0,0.0003178,2]
[337156347,1725456775930,-912.4,0.0003178,2]
[337156348,1725456775939,-202.08,0.0003178,2]
[337156349,1725456775949,-1760.41,0.0003178,2]
[337156350,1725456775958,-500.0,0.0003178,2]
[337156351,1725456775967,-500.0,0.0003178,2]
[337156352,1725456775977,-500.0,0.0003178,2]
[337156353,1725456775987,-500.0,0.0003178,2]
[337156354,1725456775997,-529.57,0.0003178,2]
[337156355,1725456776007,-2076.7,0.0003178,2]